bitfinex-derivatives/quotes_ETHF0:USTF0_20241008
["timestamp","ask_amount","ask_price","bid_price","bid_amount"]
[1728421745769,2.98024868,2443.8,2443.7,1.12944]
[1728421745974,2.98026527,2443.8,2443.7,1.12944]
[1728421747270,2.98026527,2443.8,2443.7,1.68150824]
[1728421747465,0.83222,2443.8,2443.7,1.12944]
[1728421749779,0.83222,2443.8,2443.7,2.20352168]
[1728421749972,0.83222,2443.8,2443.7,1.12944]
[1728421750676,0.83222,2443.8,2443.7,2.20352168]
[1728421751078,0.83222,2443.8,2443.7,1.12944]
[1728421751570,3.50767706,2443.8,2443.7,1.12944]
[1728421752172,0.83222,2443.8,2443.7,2.20352168]
[1728421752572,0.4228,2443.8,2443.7,2.20352168]
[1728421753478,3.09825706,2443.8,2443.7,2.20352168]
[1728421753672,0.4228,2443.8,2443.7,2.20352168]
[1728421754177,2.67545706,2443.9,2443.7,5.88608168]
[1728421754477,2.14907055,2444.0,2443.9,0.4094]
[1728421754676,2.77045706,2444.2,2444.0,0.40939]
[1728421754677,2.14907055,2444.1,2444.0,0.40939]
[1728421754886,2.14907055,2444.2,2444.1,0.40937]
[1728421755182,2.14907055,2444.4,2444.1,7.57482884]
[1728421755375,2.14907055,2444.4,2444.3,0.40934]
[1728421755974,2.14907055,2444.4,2444.3,1.22064]
[1728421756176,2.14907055,2444.5,2444.4,0.40932]
[1728421756479,2.14907055,2444.5,2444.4,0.73652]
[1728421756682,2.14907055,2444.5,2444.4,4.82772]
[1728421759177,2.55837055,2444.5,2444.4,4.82772]
[1728421759580,9.85737055,2444.5,2444.4,0.3272]
[1728421759777,10.38375706,2444.5,2444.4,0.3272]
[1728421759984,10.79085706,2444.5,2444.4,0.3272]
[1728421760880,6.69965706,2444.5,2444.4,0.3272]
[1728421761179,10.79085706,2444.5,2444.4,0.3272]
[1728421762583,7.58305706,2444.5,2444.4,0.3272]
[1728421765680,4.9076,2444.5,2444.4,0.3272]
[1728421766082,0.8164,2444.5,2444.4,0.3272]
[1728421769689,3.49643719,2444.5,2444.4,0.3272]
[1728421772298,6.70423719,2444.5,2444.4,0.3272]
[1728421778194,6.70423719,2444.5,2444.4,0.7192]
[1728421781096,3.49643719,2444.5,2444.4,0.7192]
[1728421781299,6.70423719,2444.5,2444.4,0.7192]
[1728421785206,4.0242,2444.5,2444.4,0.3272]
[1728421796306,7.23122399,2444.5,2444.4,0.3272]
[1728421796607,4.0242,2444.5,2444.4,0.3272]
[1728421797000,7.23122399,2444.5,2444.4,0.3272]
[1728421805915,7.76572799,2444.5,2444.4,0.3272]
[1728421806117,14.1154,2444.5,2444.4,1e-05]
[1728421806514,18.41295856,2444.5,2444.4,1e-05]
[1728421807012,14.1154,2444.5,2444.4,1e-05]
[1728421807517,18.41288216,2444.5,2444.4,1e-05]
[1728421807708,19.40436259,2444.5,2444.4,1e-05]
[1728421810112,15.10688043,2444.5,2444.4,1e-05]
[1728421810506,19.40195497,2444.5,2444.4,1e-05]
[1728421812413,13.40195497,2444.5,2444.4,1e-05]
[1728421813021,20.41595497,2444.5,2444.4,1e-05]
[1728421814714,13.40195497,2444.5,2444.4,1e-05]
[1728421814915,16.11788043,2444.5,2444.4,1e-05]
[1728421816821,10.11788043,2444.5,2444.4,1e-05]
[1728421817224,16.11788043,2444.5,2444.4,1e-05]
[1728421817525,20.41295497,2444.5,2444.4,1e-05]
[1728421818122,16.11788043,2444.5,2444.4,1e-05]
[1728421818325,20.41295497,2444.5,2444.4,1e-05]
[1728421819422,9.10688043,2444.5,2444.4,1e-05]
[1728421819616,15.10688043,2444.5,2444.4,1e-05]
[1728421819822,10.11788043,2444.5,2444.4,1e-05]
[1728421820219,13.87342232,2444.5,2444.4,1e-05]
[1728421820413,14.41295497,2444.5,2444.4,1e-05]
[1728421828427,10.11788043,2444.5,2444.4,1e-05]
[1728421832727,9.1264,2444.5,2444.4,1e-05]
[1728421833930,8.7193,2444.5,2444.4,1e-05]
[1728421835932,13.01437454,2444.5,2444.4,1e-05]
[1728421836529,7.91217454,2444.5,2444.4,1e-05]
[1728421836838,7.37366328,2444.5,2444.4,1e-05]
[1728421851843,3.6171,2444.5,2444.4,1e-05]
[1728421852846,7.376417,2444.5,2444.4,1e-05]
[1728421853143,7.773617,2444.5,2444.4,1e-05]
[1728421853536,4.0143,2444.5,2444.4,1e-05]
[1728421855845,8.30937454,2444.5,2444.4,1e-05]
[1728421858938,9.29387548,2444.5,2444.4,1e-05]
[1728421861549,6.08607548,2444.5,2444.4,1e-05]
[1728421861742,7.91217454,2444.5,2444.4,1e-05]
[1728421866146,4.70437454,2444.5,2444.4,1e-05]
[1728421866347,7.91217454,2444.5,2444.4,1e-05]
[1728421867150,4.70437454,2444.5,2444.4,1e-05]
[1728421867347,7.91217454,2444.5,2444.4,1e-05]
[1728421868055,4.70437454,2444.5,2444.4,1e-05]
[1728421868254,7.91217454,2444.5,2444.4,1e-05]
[1728421870556,4.70437454,2444.5,2444.4,1e-05]
[1728421870951,7.91217454,2444.5,2444.4,1e-05]
[1728421873061,7.28400083,2444.5,2444.4,1e-05]
[1728421874053,11.58196299,2444.5,2444.4,1e-05]
[1728421874763,4.07620083,2444.5,2444.4,1e-05]
[1728421874952,3.6171,2444.5,2444.4,1e-05]
[1728421875152,7.28400083,2444.5,2444.4,1e-05]
[1728421877265,4.07620083,2444.5,2444.4,1e-05]
[1728421878358,3.6171,2444.5,2444.4,1e-05]
[1728421878558,7.28400083,2444.5,2444.4,1e-05]
[1728421878767,4.07620083,2444.5,2444.4,1e-05]
[1728421879162,3.6171,2444.5,2444.4,1e-05]
[1728421879364,7.28400083,2444.5,2444.4,1e-05]
[1728421880255,4.07620083,2444.5,2444.4,1e-05]
[1728421880758,4.70826967,2444.5,2444.4,1e-05]
[1728421880967,7.91606967,2444.5,2444.4,1e-05]
[1728421881171,11.58395359,2444.5,2444.4,1e-05]
[1728421881369,7.91606967,2444.5,2444.4,1e-05]
[1728421882172,8.37623501,2444.5,2444.4,1e-05]
[1728421882371,7.91606967,2444.5,2444.4,1e-05]
[1728421882562,7.28506534,2444.5,2444.4,1e-05]
[1728421884763,7.9163083,2444.5,2444.4,1e-05]
[1728421884966,7.28506534,2444.5,2444.4,1e-05]
[1728421885574,4.07726534,2444.5,2444.4,1e-05]
[1728421885769,7.28506534,2444.5,2444.4,1e-05]
[1728421887967,12.08464088,2444.5,2444.4,1e-05]
[1728421888165,7.28506534,2444.5,2444.4,1e-05]
[1728421888871,7.9163679,2444.5,2444.4,1e-05]
[1728421911084,3.6171,2444.5,2444.4,1e-05]
[1728421919497,7.9163679,2444.5,2444.4,1e-05]
[1728421926202,3.6171,2444.5,2444.4,1e-05]
[1728421929806,7.9163679,2444.5,2444.4,1e-05]
[1728421930693,3.2078,2444.5,2444.4,11.05880674]
[1728421930893,2.5705,2444.5,2444.4,11.05880674]
[1728421931203,2.14747092,2444.5,2444.4,25.51757218]
[1728421931404,2.14747092,2444.5,2444.4,23.95880674]
[1728421931706,1.51017092,2444.5,2444.4,23.95880674]
[1728421931906,3.61705,2444.8,2444.4,23.95880674]
[1728421931907,3.2078,2444.8,2444.7,0.40927]
[1728421932105,3.61705,2444.8,2444.7,0.40927]
[1728421932304,3.61705,2444.8,2444.7,10.49967]
[1728421934117,3.61705,2444.8,2444.7,4.0904]
[1728421934407,0.40934,2444.4,2444.3,0.40932]
[1728421934607,0.40934,2444.4,2444.3,6.40932]
[1728421934807,0.40934,2444.4,2444.3,23.40052]
[1728421935106,0.40934,2444.4,2444.3,23.48842]
[1728421936010,0.40934,2444.4,2444.3,24.05514582]
[1728421936199,0.40934,2444.4,2444.3,23.48842]
[1728421939715,3.03399997,2444.6,2444.3,23.0791]
[1728421939905,0.40931,2444.5,2444.4,4.5005]
[1728421940410,0.40931,2444.5,2444.4,10.5005]
[1728421948914,0.40931,2444.5,2444.4,4.5005]
[1728421950027,0.79521,2444.5,2444.4,4.5005]
[1728421950719,0.79521,2444.5,2444.4,0.4093]
[1728421952514,2.40377997,2444.5,2444.4,0.4093]
[1728421952719,0.79521,2444.5,2444.4,0.4093]
[1728421953027,2.40377997,2444.5,2444.4,0.4093]
[1728421953320,0.79521,2444.5,2444.4,0.4093]
[1728421956823,0.79521,2444.5,2444.3,12.9879]
[1728421957026,5.22568997,2444.4,2444.3,0.0879]
[1728421957619,0.4094,2443.9,2443.8,0.4094]
[1728421957824,0.40944,2443.8,2443.7,0.40942]
[1728421958022,1.22004,2443.8,2443.7,13.30942]
[1728421958325,1.22004,2443.8,2443.7,17.40142]
[1728421960830,1.64404,2443.8,2443.7,17.40142]
[1728421962227,1.64404,2443.8,2443.7,13.30942]
[1728421965035,1.64404,2443.8,2443.7,17.40142]
[1728421965329,1.64404,2443.8,2443.7,13.30942]
[1728421968547,1.2346,2443.8,2443.7,13.30942]
[1728421988352,1.64402,2443.8,2443.7,13.30942]
[1728421992446,1.2346,2443.8,2443.7,13.30942]
[1728421992849,1.64402,2443.8,2443.7,13.30942]
[1728421993250,1.2346,2443.8,2443.7,13.30942]
[1728421994445,3.75040315,2444.0,2443.9,0.4094]
[1728421994646,2.42599881,2444.1,2444.0,0.40939]
[1728421994852,2.84509881,2444.1,2444.0,0.40939]
[1728421998357,1.2377,2444.1,2444.0,0.40939]
[1728422000557,3.38070434,2444.1,2444.0,0.40939]
[1728422002258,3.38070434,2444.1,2444.0,0.97595312]
[1728422005561,3.38070434,2444.1,2444.0,0.40939]
[1728422006157,3.38070434,2444.1,2444.0,0.97597333]
[1728422007158,3.38070434,2444.1,2444.0,0.40939]
[1728422007354,3.38070434,2444.1,2444.0,0.97591882]
[1728422009367,3.38070434,2444.1,2444.0,0.40939]
[1728422009765,3.38070434,2444.1,2444.0,0.97587158]
[1728422009962,3.38070434,2444.1,2444.0,0.9758717]
[1728422010262,3.38070434,2444.1,2444.0,0.40939]
[1728422013467,3.79007434,2444.1,2444.0,0.40939]
[1728422015569,3.38070434,2444.1,2444.0,0.40939]
[1728422015765,2.01802423,2444.1,2444.0,5.06699486]
[1728422016063,1.60982423,2444.2,2444.1,0.40937]
[1728422016270,1.60973875,2444.2,2444.1,5.06697486]
[1728422016865,1.60973875,2444.2,2444.1,5.0669076]
[1728422018065,1.60973875,2444.2,2444.1,5.3829076]
[1728422018673,1.60973875,2444.2,2444.1,4.81657]
[1728422019772,1.60973875,2444.3,2444.2,0.40935]
[1728422020073,2.00303875,2444.4,2444.3,0.40934]
[1728422020467,2.00303875,2444.4,2444.3,4.50054]
[1728422024376,0.3933,2444.4,2444.3,4.50054]
[1728422024573,2.00303875,2444.4,2444.3,4.50054]
[1728422024875,0.3933,2444.4,2444.3,4.50054]
[1728422025273,0.3933,2444.4,2444.3,7.70834]
[1728422025476,0.3933,2444.4,2444.3,3.61714]
[1728422025775,0.3933,2444.4,2444.3,7.70834]
[1728422026185,0.3933,2444.4,2444.3,3.61714]
[1728422026476,0.3933,2444.4,2444.3,7.70834]
[1728422026675,0.3933,2444.4,2444.3,3.61714]
[1728422026876,0.3933,2444.4,2444.3,7.70834]
[1728422027171,0.3933,2444.4,2444.3,3.61714]
[1728422027383,0.3933,2444.4,2444.3,7.70834]
[1728422027564,0.3933,2444.4,2444.3,3.61714]
[1728422027764,0.3933,2444.4,2444.3,7.70834]
[1728422028071,0.3933,2444.4,2444.3,3.61714]
[1728422032075,0.3933,2444.4,2444.3,0.40934]
[1728422032279,0.3933,2444.4,2444.3,3.61714]
[1728422033579,0.3933,2444.4,2444.3,0.40934]
[1728422033881,0.3933,2444.4,2444.3,3.61714]
[1728422036076,0.3933,2444.4,2444.3,0.40934]
[1728422036478,0.3933,2444.4,2444.3,3.61714]
[1728422036674,0.3933,2444.4,2444.3,0.40934]
[1728422037173,0.3933,2444.4,2444.3,3.61714]
[1728422037374,2.00303875,2444.4,2444.3,3.61714]
[1728422038474,2.41235875,2444.4,2444.3,3.61714]
[1728422038674,2.41117975,2444.4,2444.3,0.40934]
[1728422039076,11.5078,2444.4,2443.9,1.0736627]
[1728422039284,0.40939,2444.1,2444.0,0.40937]
[1728422039580,2.55435589,2444.1,2444.0,0.40937]
[1728422039776,3.34695589,2444.1,2444.0,0.40937]
[1728422040178,1.20199,2444.1,2444.0,0.40937]
[1728422040377,1.20199,2444.1,2443.7,13.92358]
[1728422040378,0.4094,2444.0,2443.9,0.40939]
[1728422040574,0.8021,2444.0,2443.9,0.40939]
[1728422040772,2.94743853,2444.0,2443.9,0.40939]
[1728422044774,0.8021,2444.0,2443.9,0.40939]
[1728422044981,2.94743853,2444.0,2443.9,0.40939]
[1728422045288,0.8021,2444.0,2443.9,0.40939]
[1728422046285,0.40942,2443.9,2443.7,12.9]
[1728422046478,0.40946,2443.6,2443.5,0.40945]
[1728422046684,2.01837632,2443.6,2443.5,0.40945]
[1728422046887,2.01837632,2443.6,2443.5,13.30945]
[1728422047087,2.43851983,2443.6,2443.5,13.30945]
[1728422047278,2.43809324,2443.6,2443.5,13.30945]
[1728422049085,2.43809324,2443.6,2443.5,12.9]
[1728422049388,0.40952,2443.3,2443.2,0.40951]
[1728422049579,2.01722494,2443.3,2443.2,0.40951]
[1728422049887,2.01722494,2443.3,2443.2,13.30951]
[1728422050281,2.01722494,2443.3,2442.9,2.04779]
[1728422050282,0.82362,2443.3,2442.9,2.04779]
[1728422050483,2.43132494,2443.3,2443.2,0.40952]
[1728422050677,5.63912494,2443.3,2443.2,0.40952]
[1728422051484,5.63912494,2443.3,2443.1,0.40953]
[1728422051485,0.40954,2443.2,2443.1,0.40953]
[1728422051885,4.50234,2443.2,2443.1,0.40953]
[1728422053782,0.40954,2443.1,2443.0,13.30954]
[1728422053982,0.79424,2443.1,2443.0,13.30954]
[1728422054384,0.3847,2443.1,2443.0,13.30954]
[1728422055680,3.5925,2443.1,2443.0,13.30954]
[1728422055882,0.79424,2443.1,2443.0,13.30954]
[1728422056186,4.00204,2443.1,2443.0,13.30954]
[1728422057484,0.3847,2443.1,2443.0,13.30954]
[1728422057995,0.4141,2443.3,2443.2,0.40952]
[1728422058194,0.3981,2443.3,2443.2,0.40952]
[1728422058388,0.8076,2443.3,2443.2,0.40952]
[1728422059395,0.3981,2443.3,2443.0,12.9]
[1728422059695,0.40954,2443.2,2443.1,0.40953]
[1728422059884,0.40954,2443.1,2443.0,13.30954]
[1728422063293,0.40953,2443.2,2443.1,0.40952]
[1728422064889,4.62967,2443.3,2443.0,12.9]
[1728422065094,4.62967,2443.3,2443.0,13.30955]
[1728422065095,0.79314,2443.1,2443.0,13.30955]
[1728422066790,0.79314,2443.1,2443.0,12.9]
[1728422067807,0.40955,2443.0,2442.9,0.40956]
[1728422068097,0.82995,2443.0,2442.9,0.40956]
[1728422068293,0.82995,2443.0,2442.9,13.30956]
[1728422070186,0.82995,2443.0,2442.9,12.9]
[1728422070387,0.4096,2442.9,2442.8,0.40958]
[1728422070586,3.6174,2442.9,2442.8,0.40958]
[1728422070794,3.6174,2442.9,2442.8,13.30958]
[1728422070997,3.6174,2442.9,2442.8,0.40958]
[1728422073093,0.4096,2442.7,2442.6,13.30961]
[1728422073496,0.4078,2442.8,2442.7,0.4096]
[1728422073699,0.81739,2442.8,2442.7,0.4096]
[1728422074794,0.4078,2442.8,2442.7,0.4096]
[1728422074997,0.4078,2442.8,2442.7,0.7259]
[1728422075192,3.2078,2442.9,2442.7,0.3163]
[1728422075400,3.2078,2442.9,2442.8,0.40959]
[1728422076301,3.61737,2442.9,2442.8,0.40959]
[1728422076498,0.40957,2442.9,2442.8,0.40959]
[1728422078299,3.6186,2443.1,2443.0,0.40955]
[1728422078494,3.2078,2443.1,2443.0,0.40955]
[1728422080213,0.40952,2443.2,2443.1,0.40954]
[1728422080407,0.40952,2443.2,2442.9,1.02391]
[1728422080408,0.7977,2443.3,2442.9,1.02391]
[1728422080707,1.20722,2443.3,2443.2,0.40952]
[1728422083311,0.40954,2443.2,2443.1,0.40953]
[1728422083910,0.40955,2443.1,2443.0,0.40954]
[1728422087117,3.42917494,2443.3,2442.8,1.34047]
[1728422087322,0.40954,2443.2,2443.1,0.40952]
[1728422087817,2.01724494,2443.2,2443.1,0.40952]
[1728422089620,1.60770494,2443.2,2443.1,0.40952]
[1728422089922,2.81491494,2443.3,2443.2,0.40952]
[1728422091324,1.20721,2443.3,2443.2,0.40952]
[1728422092321,3.35081658,2443.3,2443.2,0.40952]
[1728422100629,0.40955,2443.1,2443.0,0.40954]
[1728422103828,2.01978757,2443.1,2443.0,0.40954]
[1728422104030,0.40955,2443.1,2443.0,0.40954]
[1728422104521,2.01980901,2443.1,2443.0,0.40954]
[1728422104929,0.40955,2443.1,2443.0,0.40954]
[1728422105831,2.01982029,2443.1,2443.0,0.40954]
[1728422106332,0.40955,2443.1,2443.0,0.40954]
[1728422106636,2.01981524,2443.1,2443.0,0.40954]
[1728422106933,0.40955,2443.1,2443.0,0.40954]
[1728422107230,2.01980125,2443.1,2443.0,0.40954]
[1728422107628,0.40955,2443.1,2443.0,0.40954]
[1728422107927,2.01979934,2443.1,2443.0,0.40954]
[1728422111627,1.61024934,2443.1,2443.0,0.40954]
[1728422112033,2.01978934,2443.1,2443.0,0.40954]
[1728422112427,0.40954,2443.1,2443.0,0.40954]
[1728422112634,2.01974291,2443.1,2443.0,0.40954]
[1728422112833,3.1708784,2443.2,2442.8,2.0976327]
[1728422112834,2.1470684,2443.2,2442.8,2.0976327]
[1728422113134,2.02043273,2443.0,2442.9,0.40957]
[1728422113527,2.43443273,2443.0,2442.9,0.40957]
[1728422113929,0.8242,2443.0,2442.9,0.40957]
[1728422114125,2.43443273,2443.0,2442.9,0.40957]
[1728422117440,0.8242,2443.0,2442.9,1.4832327]
[1728422117641,2.84398273,2443.0,2442.9,0.40957]
[1728422118044,2.84398273,2443.0,2442.7,1.0736627]
[1728422118045,11.2965584,2443.0,2442.7,1.0736627]
[1728422118238,2.9637484,2442.9,2442.6,12.9]
[1728422118546,2.02013059,2442.8,2442.7,0.4096]
[1728422118938,2.02012848,2442.8,2442.7,0.4096]
[1728422119144,0.40959,2442.8,2442.7,0.4096]
[1728422119344,2.5566584,2442.8,2442.7,0.4096]
[1728422120935,2.1470684,2442.8,2442.7,0.4096]
[1728422122747,2.5566584,2442.8,2442.7,0.4096]
[1728422123046,0.40959,2442.8,2442.7,0.4096]
[1728422123349,2.55757266,2442.8,2442.7,0.4096]
[1728422124740,0.40959,2442.8,2442.7,0.4096]
[1728422125142,2.557185,2442.8,2442.7,0.4096]
[1728422127553,0.4096,2442.7,2442.6,13.30961]
[1728422127747,0.823,2442.7,2442.6,13.30961]
[1728422128147,2.43323046,2442.7,2442.6,13.30961]
[1728422131847,5.64103046,2442.7,2442.6,13.30961]
[1728422132051,2.970595,2442.7,2442.6,13.30961]
[1728422132252,0.823,2442.7,2442.6,13.30961]
[1728422132548,6.654595,2442.7,2442.4,0.40964]
[1728422132751,1.02414,2442.5,2442.1,2.4994127]
[1728422132963,2.82424293,2442.4,2442.3,0.40966]
[1728422133250,2.82424293,2442.4,2442.3,13.30966]
[1728422134151,2.41457293,2442.4,2442.3,13.30966]
[1728422134351,2.82422293,2442.4,2442.3,13.30966]
[1728422137253,2.82422293,2442.4,2442.3,12.9]
[1728422137549,1.21435,2442.4,2442.3,12.9]
[1728422138154,2.82241569,2442.4,2442.3,12.9]
[1728422138647,2.82241569,2442.4,2441.7,2.0980927]
[1728422138648,0.40973,2442.0,2441.7,2.0980927]
[1728422138853,1.23305,2441.9,2441.8,0.40974]
[1728422139253,1.23305,2441.9,2441.8,13.30974]
[1728422140952,1.23305,2441.9,2441.8,12.9]
[1728422141744,0.8233,2441.9,2441.7,0.40977]
[1728422141950,0.80105,2441.8,2441.7,0.40977]
[1728422142349,0.80105,2441.8,2441.7,13.30977]
[1728422143445,0.80105,2441.8,2441.7,12.9]
[1728422144154,0.80105,2441.8,2441.7,13.30977]
[1728422144353,0.80105,2441.8,2441.7,12.9]
[1728422145054,0.8233,2441.9,2441.7,12.9]
[1728422145055,0.4134,2441.9,2441.7,12.9]
[1728422145255,0.83142,2442.1,2442.0,0.40972]
[1728422145460,3.2078,2442.2,2441.8,1.72609]
[1728422145757,3.6175,2442.2,2442.1,0.4097]
[1728422155361,3.2078,2442.2,2441.8,1.72609]
[1728422155559,0.40972,2442.1,2442.0,0.4097]
[1728422164072,0.40975,2442.0,2441.9,0.40972]
[1728422164373,0.40975,2441.8,2441.7,13.30976]
[1728422164573,0.40979,2441.6,2441.5,0.40979]
[1728422164966,0.40979,2441.6,2441.5,13.30979]
[1728422165165,0.40979,2441.6,2441.5,12.9]
[1728422165370,0.40979,2441.6,2441.3,0.39]
[1728422165371,0.40984,2441.4,2441.3,0.40982]
[1728422165572,0.4201,2441.5,2441.2,3.2078]
[1728422165771,0.79364,2441.3,2441.2,0.40984]
[1728422166272,0.79364,2441.3,2441.2,13.30984]
[1728422166470,0.3838,2441.3,2441.2,13.30984]
[1728422168672,0.4201,2441.5,2441.2,13.30984]
[1728422168673,2.01605829,2441.7,2441.4,0.40982]
[1728422168874,0.3868,2441.8,2441.7,0.40977]
[1728422174280,0.79655,2441.8,2441.7,0.40977]
[1728422175385,0.3868,2441.8,2441.7,0.40977]
[1728422175790,2.02495829,2442.0,2441.7,4.50497]
[1728422176084,0.8034,2442.0,2441.9,0.40974]
[1728422176587,1.21312,2442.0,2441.9,13.30974]
[1728422177383,2.41251642,2442.0,2441.9,13.30974]
[1728422178988,2.82223642,2442.0,2441.9,13.30974]
[1728422179188,2.41251642,2442.0,2441.9,13.30974]
[1728422180278,0.8034,2442.0,2441.9,13.30974]
[1728422180684,2.41353612,2442.0,2441.9,13.30974]
[1728422181393,0.8034,2442.0,2441.9,13.30974]
[1728422183281,2.94890923,2442.0,2441.9,13.30974]
[1728422185988,2.41428111,2442.0,2441.9,13.30974]
[1728422188795,1.61088111,2442.0,2441.9,17.40494]
[1728422189091,1.61088111,2442.1,2442.0,0.40972]
[1728422189294,6.97109923,2442.2,2442.1,0.4097]
[1728422189492,6.56140923,2442.2,2442.1,0.4097]
[1728422190090,6.97109923,2442.2,2442.1,0.4097]
[1728422191190,6.56140923,2442.2,2442.1,0.4097]
[1728422193197,6.0264265,2442.2,2442.1,0.4097]
[1728422193393,6.0264265,2442.2,2442.1,4.5041]
[1728422193595,2.14550923,2442.3,2442.2,0.40969]
[1728422193596,1.6105265,2442.3,2442.2,0.40969]
[1728422193792,1.6105265,2442.3,2442.2,4.90539]
[1728422193991,3.37280923,2442.5,2442.3,0.40967]
[1728422193992,1.6105265,2442.4,2442.3,0.40967]
[1728422194896,2.8378265,2442.5,2442.4,0.40965]
[1728422197385,1.2273,2442.5,2442.4,0.40965]
[1728422216414,1.63694,2442.5,2442.4,0.40965]
[1728422217006,1.2273,2442.5,2442.4,0.40965]
[1728422220409,5.73134,2442.5,2442.0,2.09705428]
[1728422220717,1.6105265,2442.2,2441.9,12.9]
[1728422220907,1.1832,2442.1,2442.0,0.40972]
[1728422222709,1.1832,2442.1,2442.0,4.50492]
[1728422223108,1.1832,2442.1,2442.0,0.40972]
[1728422226230,1.6105265,2442.3,2442.2,0.40969]
[1728422226421,0.7742,2442.3,2442.2,0.40969]
[1728422228417,0.3857,2442.3,2442.2,4.50409]
[1728422228911,0.3857,2442.3,2442.2,5.57683428]
[1728422229924,0.3857,2442.3,2442.2,4.50409]
[1728422230821,0.3857,2442.3,2442.2,5.57736149]
[1728422231320,0.3857,2442.3,2442.2,7.22023567]
[1728422231915,0.3857,2442.3,2442.2,5.89426149]
[1728422232214,1.60990723,2442.5,2442.4,0.40965]
[1728422232411,2.40550723,2442.5,2442.4,0.40965]
[1728422233410,1.70490723,2442.8,2442.4,19.68808077]
[1728422233614,2.40690723,2442.8,2442.7,0.4096]
[1728422234807,2.80860723,2442.8,2442.7,0.4096]
[1728422237228,0.4017,2442.8,2442.7,0.4096]
[1728422241619,0.7927,2443.0,2442.7,11.14927182]
[1728422241825,2.02390723,2443.1,2443.0,0.40955]
[1728422242026,1.60990723,2443.2,2443.1,0.40954]
[1728422242327,2.68317873,2443.5,2443.2,0.40952]
[1728422242328,1.60990723,2443.5,2443.2,0.40952]
[1728422242524,2.02390723,2443.6,2443.3,7.7194]
[1728422242821,0.414,2443.6,2443.5,0.40947]
[1728422244121,0.414,2443.6,2443.5,13.30947]
[1728422244427,0.414,2443.6,2443.5,17.40227]
[1728422246127,0.414,2443.6,2443.5,13.30947]
[1728422248821,0.4032,2443.7,2443.6,0.40945]
[1728422249028,0.4032,2443.7,2443.6,4.50145]
[1728422249224,0.4032,2443.7,2443.6,4.80219041]
[1728422249730,0.4032,2443.7,2443.6,8.89419041]
[1728422252725,0.4055,2443.8,2443.7,0.40944]
[1728422252925,0.4055,2443.8,2443.7,4.50144]
[1728422253130,0.4055,2443.8,2443.7,9.2261651]
[1728422263244,0.095,2444.1,2443.7,15.2261651]
[1728422263435,0.919,2444.3,2444.2,0.40935]
[1728422263636,0.824,2444.3,2444.2,0.40935]
[1728422267439,0.40936,2444.2,2444.1,0.40936]
[1728422267638,0.40935,2444.2,2444.1,0.40936]
[1728422267838,0.824,2444.3,2444.1,4.35576797]
[1728422268043,0.824,2444.3,2443.7,1.02356]
[1728422268044,4.9152,2444.3,2443.7,1.02356]
[1728422268242,0.824,2444.3,2443.9,0.40939]
[1728422268446,1.02339,2444.2,2443.9,0.40939]
[1728422268745,0.40938,2444.1,2443.9,0.4094]
[1728422268946,0.4189,2444.0,2443.9,0.4094]
[1728422270538,4.8991,2444.0,2443.5,13.92366]
[1728422270740,0.40943,2443.8,2443.6,0.40944]
[1728422270940,0.40943,2443.8,2443.6,0.40945]
[1728422271138,0.40943,2443.8,2443.5,12.9]
[1728422271336,0.4113,2443.7,2443.6,0.40945]
[1728422272146,4.91275,2443.7,2443.5,13.30946]
[1728422272348,4.91275,2443.7,2443.5,13.30947]
[1728422272349,0.4238,2443.6,2443.5,13.30947]
[1728422276651,0.832,2443.6,2443.5,13.30947]
[1728422281561,1.60990723,2444.0,2443.5,16.9928]
[1728422281756,0.40939,2444.0,2443.9,0.4094]
[1728422282052,0.40944,2443.7,2443.6,0.40945]
[1728422282856,0.3943,2443.8,2443.5,12.9]
[1728422283057,0.81755,2443.6,2443.5,13.30946]
[1728422283254,0.4081,2443.6,2443.5,13.30946]
[1728422283960,0.3925,2443.7,2443.6,0.40945]
[1728422288169,0.80194,2443.7,2443.6,0.40945]
[1728422288360,4.89394,2443.7,2443.6,0.40945]
[1728422289166,6.50384723,2443.7,2443.6,0.40945]
[1728422291066,2.41184723,2443.7,2443.6,0.40945]
[1728422291465,2.00240723,2443.7,2443.6,0.40945]
[1728422291664,2.41184723,2443.7,2443.6,0.40945]
[1728422292063,1.60990723,2443.7,2443.6,0.40945]
[1728422292265,2.55465964,2443.9,2443.6,0.40945]
[1728422292266,2.42741723,2443.9,2443.6,4.96255254]
[1728422292462,2.01800723,2443.9,2443.6,4.96255254]
[1728422292658,2.42741723,2443.9,2443.6,4.96255254]
[1728422292863,2.42741723,2443.9,2443.8,0.40942]
[1728422293777,2.42554717,2443.9,2443.8,0.40942]
[1728422294762,4.90951,2443.9,2443.8,0.40942]
[1728422296478,0.40944,2443.8,2443.7,0.40942]
[1728422296972,6.64799964,2443.8,2443.7,0.40942]
[1728422297369,6.64799964,2443.8,2443.5,12.9]
[1728422297569,2.43957565,2443.7,2443.6,0.40944]
[1728422297970,6.53157565,2443.7,2443.6,0.40944]
[1728422299470,4.92345,2443.7,2443.6,0.40944]
[1728422299671,6.53144077,2443.7,2443.6,0.40944]
[1728422299978,4.92345,2443.7,2443.6,0.40944]
[1728422300273,4.514,2443.7,2443.5,12.9]
[1728422300477,2.40749269,2443.6,2443.5,12.9]
[1728422301476,0.40947,2443.5,2443.4,0.40947]
[1728422301775,0.82387,2443.5,2443.4,0.40947]
[1728422302079,0.82387,2443.5,2443.4,13.30947]
[1728422302379,0.4144,2443.5,2443.4,13.30947]
[1728422303179,0.4144,2443.5,2443.4,12.9]
[1728422303378,2.43191269,2443.5,2443.4,12.9]
[1728422303672,0.82387,2443.5,2443.4,12.9]
[1728422304279,2.43166139,2443.5,2443.4,12.9]
[1728422305268,0.82387,2443.5,2443.4,12.9]
[1728422305468,2.43153994,2443.5,2443.4,12.9]
[1728422306179,2.43153994,2443.5,2443.4,13.30949]